[Event "Late-Titled-Tuesday-Blitz-February-20-2024"]
[Site "Chess.com"]
[Date "2024.02.20"]
[Round "10"]
[White "Capablanca_Oujda_2021"]
[Black "Rashad_Zeynalli"]
[Result "0-1"]
[WhiteElo "2506"]
[BlackElo "2649"]
[TimeControl "180+1"]
[EndTime "15:55:16 PST"]
[Termination "Rashad_Zeynalli won on time"]

1. d4 {[%clk 0:02:59.2]} 1... d5 {[%clk 0:02:29.1]} 2. Nf3 {[%clk 0:02:57.4]}
2... Nf6 {[%clk 0:02:27.2]} 3. Bf4 {[%clk 0:02:57.1]} 3... c5 {[%clk 0:02:24.4]}
4. e3 {[%clk 0:02:56.8]} 4... Nc6 {[%clk 0:02:24]} 5. c3 {[%clk 0:02:57]} 5...
Qb6 {[%clk 0:02:23.2]} 6. Qb3 {[%clk 0:02:55.3]} 6... c4 {[%clk 0:02:22.7]} 7.
Qxb6 {[%clk 0:02:53]} 7... axb6 {[%clk 0:02:23.6]} 8. Nbd2 {[%clk 0:02:52.6]}
8... h6 {[%clk 0:02:18.5]} 9. Be2 {[%clk 0:02:52.6]} 9... Bf5 {[%clk 0:02:17.7]}
10. O-O {[%clk 0:02:51.5]} 10... e6 {[%clk 0:02:18.1]} 11. Ne5 {[%clk
0:02:45.3]} 11... g5 {[%clk 0:02:15.9]} 12. Bg3 {[%clk 0:02:43.1]} 12... Be7
{[%clk 0:02:13.6]} 13. Nxc6 {[%clk 0:02:42.3]} 13... bxc6 {[%clk 0:02:14.5]} 14.
Be5 {[%clk 0:02:42.5]} 14... O-O {[%clk 0:02:07.5]} 15. Bf3 {[%clk 0:02:31.2]}
15... Nd7 {[%clk 0:02:04.8]} 16. Bg3 {[%clk 0:02:23.7]} 16... b5 {[%clk
0:01:53.3]} 17. a3 {[%clk 0:02:20]} 17... Bd3 {[%clk 0:01:49.1]} 18. Rfe1 {[%clk
0:02:19.9]} 18... Nb6 {[%clk 0:01:49.1]} 19. e4 {[%clk 0:02:18.8]} 19... Rfe8
{[%clk 0:01:41.5]} 20. Bc7 {[%clk 0:02:16.8]} 20... Na4 {[%clk 0:01:40.1]} 21.
Ra2 {[%clk 0:01:52.5]} 21... Bf8 {[%clk 0:01:36.5]} 22. Be5 {[%clk 0:01:36.6]}
22... f5 {[%clk 0:01:19.3]} 23. exf5 {[%clk 0:01:20.6]} 23... exf5 {[%clk
0:01:20.2]} 24. Rc1 {[%clk 0:01:20.6]} 24... g4 {[%clk 0:01:15.8]} 25. Bd1
{[%clk 0:01:12.7]} 25... Bg7 {[%clk 0:01:11.5]} 26. Bxa4 {[%clk 0:01:12.4]}
26... bxa4 {[%clk 0:00:58.5]} 27. f4 {[%clk 0:01:12.3]} 27... Bxe5 {[%clk
0:00:52.4]} 28. dxe5 {[%clk 0:00:59.6]} 28... Rab8 {[%clk 0:00:51.5]} 29. b4
{[%clk 0:00:43]} 29... axb3 {[%clk 0:00:44.2]} 30. Rb2 {[%clk 0:00:42.6]} 30...
Ra8 {[%clk 0:00:44.4]} 31. Ra1 {[%clk 0:00:42.1]} 31... Ra4 {[%clk 0:00:44.9]}
32. Kf2 {[%clk 0:00:29.9]} 32... Rea8 {[%clk 0:00:45.2]} 33. Ke3 {[%clk
0:00:27.6]} 33... Rxa3 {[%clk 0:00:44.5]} 34. Nxb3 {[%clk 0:00:19.2]} 34... Rxa1
{[%clk 0:00:40.1]} 35. Nxa1 {[%clk 0:00:17.5]} 35... Rxa1 {[%clk 0:00:41]} 36.
Kd4 {[%clk 0:00:13.8]} 36... Rb1 {[%clk 0:00:30.9]} 37. Ra2 {[%clk 0:00:13]}
37... Rb5 {[%clk 0:00:30.2]} 38. Ra7 {[%clk 0:00:12.4]} 38... Be4 {[%clk
0:00:27.8]} 39. e6 {[%clk 0:00:09.5]} 39... Kf8 {[%clk 0:00:23.5]} 40. Ke5
{[%clk 0:00:09.1]} 40... Rb8 {[%clk 0:00:16.9]} 41. Kf6 {[%clk 0:00:09]} 41...
d4 {[%clk 0:00:14.4]} 42. Rb7 {[%clk 0:00:03.6]} 42... Rxb7 {[%clk 0:00:13.8]}
43. cxd4 {[%clk 0:00:02.4]} 43... c3 {[%clk 0:00:13.3]} 0-1

[Event "Late-Titled-Tuesday-Blitz-February-20-2024"]
[Site "Chess.com"]
[Date "2024.02.20"]
[Round "10"]
[White "NCchamp"]
[Black "Atousa"]
[Result "0-1"]
[WhiteElo "2337"]
[BlackElo "2459"]
[TimeControl "180+1"]
[EndTime "15:55:17 PST"]
[Termination "Atousa won by checkmate"]

1. d4 {[%clk 0:02:56.3]} 1... Nf6 {[%clk 0:02:52.3]} 2. Bg5 {[%clk 0:02:54.4]}
2... d5 {[%clk 0:02:48.3]} 3. Bxf6 {[%clk 0:02:53.9]} 3... exf6 {[%clk
0:02:47.6]} 4. e3 {[%clk 0:02:53.9]} 4... c6 {[%clk 0:02:48.1]} 5. c4 {[%clk
0:02:53.4]} 5... dxc4 {[%clk 0:02:45.2]} 6. Bxc4 {[%clk 0:02:53.5]} 6... Bd6
{[%clk 0:02:46.1]} 7. Nc3 {[%clk 0:02:52.8]} 7... O-O {[%clk 0:02:46.4]} 8. Nf3
{[%clk 0:02:52.7]} 8... Nd7 {[%clk 0:02:46.8]} 9. O-O {[%clk 0:02:50]} 9... f5
{[%clk 0:02:47.2]} 10. Qc2 {[%clk 0:02:46]} 10... Nf6 {[%clk 0:02:46.5]} 11.
Rad1 {[%clk 0:02:41.9]} 11... g6 {[%clk 0:02:46.3]} 12. Ne5 {[%clk 0:02:40.2]}
12... Qe7 {[%clk 0:02:45.7]} 13. f4 {[%clk 0:02:38.9]} 13... Be6 {[%clk
0:02:43.8]} 14. Qb3 {[%clk 0:02:33.2]} 14... Bxc4 {[%clk 0:02:43.3]} 15. Qxc4
{[%clk 0:02:34.1]} 15... Rad8 {[%clk 0:02:41.6]} 16. h3 {[%clk 0:02:29.6]} 16...
Ne4 {[%clk 0:02:40.1]} 17. Nxe4 {[%clk 0:02:28.5]} 17... fxe4 {[%clk 0:02:40.2]}
18. a3 {[%clk 0:02:19.8]} 18... Kg7 {[%clk 0:02:35.2]} 19. Qc3 {[%clk
0:01:58.4]} 19... f6 {[%clk 0:02:29]} 20. Nc4 {[%clk 0:01:58.4]} 20... Bc7
{[%clk 0:02:20.7]} 21. b4 {[%clk 0:01:58.4]} 21... Rd5 {[%clk 0:02:20.4]} 22.
Rc1 {[%clk 0:01:47.4]} 22... h5 {[%clk 0:02:18.8]} 23. Nd2 {[%clk 0:01:42.7]}
23... a5 {[%clk 0:02:13.4]} 24. Rb1 {[%clk 0:01:29.6]} 24... axb4 {[%clk
0:02:12.9]} 25. axb4 {[%clk 0:01:19.8]} 25... Rb5 {[%clk 0:02:12.2]} 26. Qc2
{[%clk 0:01:10.6]} 26... Re8 {[%clk 0:02:09.5]} 27. Rb3 {[%clk 0:00:55.8]} 27...
Rxb4 {[%clk 0:02:00.9]} 28. Rxb4 {[%clk 0:00:55.9]} 28... Qxb4 {[%clk
0:02:01.5]} 29. Rb1 {[%clk 0:00:56.6]} 29... Qa3 {[%clk 0:02:01.9]} 30. Rb3
{[%clk 0:00:56.7]} 30... Qa1+ {[%clk 0:02:01.9]} 31. Rb1 {[%clk 0:00:48.2]}
31... Qa7 {[%clk 0:02:00.5]} 32. Nxe4 {[%clk 0:00:44.3]} 32... Qa3 {[%clk
0:01:42]} 33. Rb3 {[%clk 0:00:44.2]} 33... Qa1+ {[%clk 0:01:27.4]} 34. Kf2
{[%clk 0:00:44.2]} 34... b5 {[%clk 0:01:12.7]} 35. Rc3 {[%clk 0:00:34.6]} 35...
Ra8 {[%clk 0:01:08.1]} 36. Qd3 {[%clk 0:00:27.5]} 36... Ra2+ {[%clk 0:01:06.4]}
37. Rc2 {[%clk 0:00:27.8]} 37... Qb1 {[%clk 0:01:02.9]} 38. Rxa2 {[%clk
0:00:08.2]} 38... Qxd3 {[%clk 0:01:02.8]} 39. Nc5 {[%clk 0:00:07.9]} 39... Qf5
{[%clk 0:00:26.7]} 40. g3 {[%clk 0:00:05.3]} 40... Kh6 {[%clk 0:00:24.4]} 41.
Kg2 {[%clk 0:00:05.1]} 41... Qd5+ {[%clk 0:00:23.8]} 42. Kf2 {[%clk 0:00:04.3]}
42... Qxa2+ {[%clk 0:00:24.1]} 43. Kf3 {[%clk 0:00:04.8]} 43... Qa1 {[%clk
0:00:24.1]} 44. Ne4 {[%clk 0:00:04.1]} 44... Qh1+ {[%clk 0:00:24.1]} 45. Kf2
{[%clk 0:00:04.3]} 45... Qxe4 {[%clk 0:00:25]} 46. Kg1 {[%clk 0:00:04.3]} 46...
b4 {[%clk 0:00:25.9]} 47. Kh2 {[%clk 0:00:05.1]} 47... b3 {[%clk 0:00:26.8]} 48.
Kg1 {[%clk 0:00:05.7]} 48... b2 {[%clk 0:00:27.7]} 49. Kh2 {[%clk 0:00:06.4]}
49... b1=Q {[%clk 0:00:28.3]} 50. g4 {[%clk 0:00:07.1]} 50... Qbh1+ {[%clk
0:00:28.8]} 51. Kg3 {[%clk 0:00:07.4]} 51... Qef3+ {[%clk 0:00:29.7]} 52. Kh4
{[%clk 0:00:08.3]} 52... Qhxh3# {[%clk 0:00:30.2]} 0-1

[Event "Late-Titled-Tuesday-Blitz-February-20-2024"]
[Site "Chess.com"]
[Date "2024.02.20"]
[Round "10"]
[White "vugarrasulov"]
[Black "Duhless"]
[Result "0-1"]
[WhiteElo "2936"]
[BlackElo "3093"]
[TimeControl "180+1"]
[EndTime "15:55:19 PST"]
[Termination "Duhless won by resignation"]

1. e4 {[%clk 0:02:59.8]} 1... c5 {[%clk 0:03:00.1]} 2. Nf3 {[%clk 0:02:59.4]}
2... d6 {[%clk 0:03:00.3]} 3. d4 {[%clk 0:02:56.4]} 3... cxd4 {[%clk 0:03:01.2]}
4. Nxd4 {[%clk 0:02:56.9]} 4... Nf6 {[%clk 0:03:01.8]} 5. Nc3 {[%clk 0:02:57.5]}
5... Nc6 {[%clk 0:03:02.5]} 6. f3 {[%clk 0:02:50]} 6... e5 {[%clk 0:03:01.8]} 7.
Nb3 {[%clk 0:02:50.2]} 7... Be7 {[%clk 0:03:01.9]} 8. Be3 {[%clk 0:02:50.2]}
8... O-O {[%clk 0:03:00.4]} 9. Qe2 {[%clk 0:02:49.2]} 9... a5 {[%clk 0:02:59.6]}
10. a4 {[%clk 0:02:44.2]} 10... Be6 {[%clk 0:02:59]} 11. O-O-O {[%clk
0:02:42.3]} 11... Nb4 {[%clk 0:02:58.6]} 12. Kb1 {[%clk 0:02:39.9]} 12... Rc8
{[%clk 0:02:56.7]} 13. Qb5 {[%clk 0:02:37.5]} 13... d5 {[%clk 0:02:53.8]} 14.
Bb6 {[%clk 0:02:30.7]} 14... Qe8 {[%clk 0:02:53.8]} 15. Qxe8 {[%clk 0:02:17.3]}
15... Rfxe8 {[%clk 0:02:53.5]} 16. Bxa5 {[%clk 0:01:55.1]} 16... d4 {[%clk
0:02:46.4]} 17. Bxb4 {[%clk 0:01:54.8]} 17... Bxb4 {[%clk 0:02:47.3]} 18. Na2
{[%clk 0:01:52.5]} 18... Be7 {[%clk 0:02:42.7]} 19. Bb5 {[%clk 0:01:52.7]} 19...
Red8 {[%clk 0:02:40.4]} 20. Nac1 {[%clk 0:01:53.2]} 20... Ne8 {[%clk 0:02:37.8]}
21. Nd3 {[%clk 0:01:52.6]} 21... f6 {[%clk 0:02:38]} 22. f4 {[%clk 0:01:43.1]}
22... Bd6 {[%clk 0:02:37.9]} 23. fxe5 {[%clk 0:01:36.8]} 23... fxe5 {[%clk
0:02:38.8]} 24. Na5 {[%clk 0:01:27.6]} 24... Rc7 {[%clk 0:02:35]} 25. b3 {[%clk
0:01:26.3]} 25... Nf6 {[%clk 0:02:33]} 26. Rhe1 {[%clk 0:01:26.8]} 26... Bg4
{[%clk 0:02:31.2]} 27. Rd2 {[%clk 0:01:21.4]} 27... Bh5 {[%clk 0:02:28.6]} 28.
h3 {[%clk 0:01:13.3]} 28... Bg6 {[%clk 0:02:25.2]} 29. Rde2 {[%clk 0:01:13.9]}
29... Nh5 {[%clk 0:02:25.5]} 30. Nc4 {[%clk 0:01:00.8]} 30... Ng3 {[%clk
0:02:24.7]} 31. Ndxe5 {[%clk 0:01:01.1]} 31... Nxe2 {[%clk 0:02:17.8]} 32. Rxe2
{[%clk 0:01:02]} 32... Bxe5 {[%clk 0:02:04.5]} 33. Nxe5 {[%clk 0:01:02.9]} 33...
Be8 {[%clk 0:02:02.1]} 34. Bc4+ {[%clk 0:00:59.6]} 34... Kf8 {[%clk 0:02:02]}
35. Kb2 {[%clk 0:00:49.5]} 35... Ke7 {[%clk 0:02:00.7]} 36. Bd5 {[%clk
0:00:47.9]} 36... Kf6 {[%clk 0:01:21.1]} 37. Nf3 {[%clk 0:00:44.4]} 37... Bf7
{[%clk 0:01:19.5]} 38. e5+ {[%clk 0:00:28]} 38... Ke7 {[%clk 0:01:17.9]} 39.
Bxf7 {[%clk 0:00:28.6]} 39... Kxf7 {[%clk 0:01:18.1]} 40. Re4 {[%clk 0:00:29.1]}
40... d3 {[%clk 0:01:16.4]} 41. cxd3 {[%clk 0:00:25.4]} 41... Rxd3 {[%clk
0:01:16.2]} 42. a5 {[%clk 0:00:24.2]} 42... Rd5 {[%clk 0:01:08.8]} 43. b4 {[%clk
0:00:23.4]} 43... Rd3 {[%clk 0:01:09]} 44. Nd4 {[%clk 0:00:20.1]} 44... Rc4
{[%clk 0:01:07.1]} 45. Rf4+ {[%clk 0:00:20.5]} 45... Kg8 {[%clk 0:00:47.4]} 46.
e6 {[%clk 0:00:08.4]} 46... Rdxd4 {[%clk 0:00:45.6]} 47. e7 {[%clk 0:00:07.1]}
47... Rd2+ {[%clk 0:00:45.9]} 48. Kb3 {[%clk 0:00:05.6]} 48... Rc8 {[%clk
0:00:46.6]} 49. b5 {[%clk 0:00:05.4]} 49... Re2 {[%clk 0:00:42.3]} 50. Rc4
{[%clk 0:00:03.1]} 50... Rxc4 {[%clk 0:00:36.3]} 51. Kxc4 {[%clk 0:00:04]} 51...
Kf7 {[%clk 0:00:35.2]} 52. Kc5 {[%clk 0:00:04]} 52... Re6 {[%clk 0:00:34.8]} 53.
a6 {[%clk 0:00:03.2]} 53... bxa6 {[%clk 0:00:33.7]} 54. b6 {[%clk 0:00:04.1]}
54... Rxe7 {[%clk 0:00:32.8]} 0-1

[Event "Late-Titled-Tuesday-Blitz-February-20-2024"]
[Site "Chess.com"]
[Date "2024.02.20"]
[Round "10"]
[White "gahryman"]
[Black "Tunahan_Makaraci"]
[Result "0-1"]
[WhiteElo "2684"]
[BlackElo "2538"]
[TimeControl "180+1"]
[EndTime "15:55:22 PST"]
[Termination "Tunahan_Makaraci won on time"]

1. e4 {[%clk 0:03:00.9]} 1... Nf6 {[%clk 0:02:48.7]} 2. e5 {[%clk 0:02:59.7]}
2... Nd5 {[%clk 0:02:48.7]} 3. d4 {[%clk 0:02:59.9]} 3... d6 {[%clk 0:02:48.5]}
4. c4 {[%clk 0:02:59.9]} 4... Nb6 {[%clk 0:02:48.6]} 5. f4 {[%clk 0:02:59.9]}
5... dxe5 {[%clk 0:02:49]} 6. fxe5 {[%clk 0:02:59.9]} 6... Bf5 {[%clk
0:02:49.4]} 7. Nc3 {[%clk 0:02:58]} 7... e6 {[%clk 0:02:49.7]} 8. Be3 {[%clk
0:02:58.2]} 8... Bb4 {[%clk 0:02:49.3]} 9. Nf3 {[%clk 0:02:57.6]} 9... c5 {[%clk
0:02:48.9]} 10. a3 {[%clk 0:02:47.5]} 10... Bxc3+ {[%clk 0:02:47.7]} 11. bxc3
{[%clk 0:02:46.5]} 11... Nc6 {[%clk 0:02:41.7]} 12. Be2 {[%clk 0:02:34.7]} 12...
O-O {[%clk 0:02:40.5]} 13. O-O {[%clk 0:02:34.4]} 13... Na5 {[%clk 0:02:35.7]}
14. Nd2 {[%clk 0:02:32]} 14... Bg6 {[%clk 0:02:14.9]} 15. Rc1 {[%clk 0:02:15]}
15... Rc8 {[%clk 0:02:14.2]} 16. Qe1 {[%clk 0:02:09]} 16... Qd7 {[%clk
0:01:57.9]} 17. h4 {[%clk 0:02:04.7]} 17... h6 {[%clk 0:01:48.1]} 18. Qg3 {[%clk
0:01:50.4]} 18... Kh8 {[%clk 0:01:47]} 19. h5 {[%clk 0:01:21.5]} 19... Bh7
{[%clk 0:01:44.7]} 20. Rf4 {[%clk 0:01:22.2]} 20... cxd4 {[%clk 0:01:25]} 21.
cxd4 {[%clk 0:01:14.9]} 21... Nd5 {[%clk 0:01:24.8]} 22. Rff1 {[%clk 0:01:04.2]}
22... Nxe3 {[%clk 0:01:22.8]} 23. Qxe3 {[%clk 0:01:05.1]} 23... Rcd8 {[%clk
0:01:11.9]} 24. Nf3 {[%clk 0:01:04.6]} 24... Bf5 {[%clk 0:01:01.5]} 25. d5
{[%clk 0:00:57.4]} 25... exd5 {[%clk 0:00:53.5]} 26. cxd5 {[%clk 0:00:58.3]}
26... Qxd5 {[%clk 0:00:49.1]} 27. Rc5 {[%clk 0:00:57.9]} 27... Qb3 {[%clk
0:00:49.2]} 28. Qxb3 {[%clk 0:00:53.3]} 28... Nxb3 {[%clk 0:00:49]} 29. Rb5
{[%clk 0:00:54.2]} 29... Be6 {[%clk 0:00:42.3]} 30. Rxb7 {[%clk 0:00:52.9]}
30... a5 {[%clk 0:00:42.1]} 31. Ra7 {[%clk 0:00:46.6]} 31... Bg4 {[%clk
0:00:35.8]} 32. e6 {[%clk 0:00:39.3]} 32... fxe6 {[%clk 0:00:31.8]} 33. Ne5
{[%clk 0:00:38.4]} 33... Bxe2 {[%clk 0:00:25.3]} 34. Rff7 {[%clk 0:00:24]} 34...
Rd1+ {[%clk 0:00:16.7]} 35. Kh2 {[%clk 0:00:23.8]} 35... Rxf7 {[%clk 0:00:15.8]}
36. Nxf7+ {[%clk 0:00:07.3]} 36... Kg8 {[%clk 0:00:13.6]} 37. Ne5 {[%clk
0:00:06.7]} 37... Bxh5 {[%clk 0:00:13.5]} 38. g4 {[%clk 0:00:07.2]} 38... Re1
{[%clk 0:00:12.5]} 39. Ra8+ {[%clk 0:00:06.7]} 39... Kh7 {[%clk 0:00:12.6]} 40.
Nd7 {[%clk 0:00:06.6]} 40... Re2+ {[%clk 0:00:08.8]} 41. Kg3 {[%clk 0:00:06.4]}
41... Bf7 {[%clk 0:00:05.5]} 42. Nf8+ {[%clk 0:00:06.3]} 42... Kg8 {[%clk
0:00:05.7]} 43. Nxe6+ {[%clk 0:00:04.4]} 43... Be8 {[%clk 0:00:04.9]} 0-1

[Event "Late-Titled-Tuesday-Blitz-February-20-2024"]
[Site "Chess.com"]
[Date "2024.02.20"]
[Round "10"]
[White "rachidhuilda"]
[Black "campochess"]
[Result "1/2-1/2"]
[WhiteElo "2324"]
[BlackElo "2169"]
[TimeControl "180+1"]
[EndTime "15:55:30 PST"]
[Termination "Game drawn - insufficient material"]

1. d4 {[%clk 0:02:55.6]} 1... Nf6 {[%clk 0:02:59.2]} 2. Nf3 {[%clk 0:02:52.7]}
2... g6 {[%clk 0:02:59]} 3. e3 {[%clk 0:02:50.3]} 3... Bg7 {[%clk 0:02:58.4]} 4.
Be2 {[%clk 0:02:50.3]} 4... d6 {[%clk 0:02:57.9]} 5. O-O {[%clk 0:02:47.8]} 5...
O-O {[%clk 0:02:57.7]} 6. c4 {[%clk 0:02:47.8]} 6... Nc6 {[%clk 0:02:57.4]} 7.
Nc3 {[%clk 0:02:46.8]} 7... e5 {[%clk 0:02:57.5]} 8. dxe5 {[%clk 0:02:42.1]}
8... Nxe5 {[%clk 0:02:56.4]} 9. b3 {[%clk 0:02:31.7]} 9... Nfg4 {[%clk
0:02:52.1]} 10. Bb2 {[%clk 0:02:26.9]} 10... Nxf3+ {[%clk 0:02:49.2]} 11. Bxf3
{[%clk 0:02:26.8]} 11... Qh4 {[%clk 0:02:43.1]} 12. Bxg4 {[%clk 0:02:18.8]}
12... Bxg4 {[%clk 0:02:41.2]} 13. f3 {[%clk 0:02:09.2]} 13... Be6 {[%clk
0:02:36.2]} 14. Qe1 {[%clk 0:01:59.3]} 14... Qxe1 {[%clk 0:02:26.1]} 15. Rfxe1
{[%clk 0:01:55.1]} 15... a6 {[%clk 0:02:26.2]} 16. Re2 {[%clk 0:01:35.5]} 16...
Rfe8 {[%clk 0:02:24.7]} 17. Kf2 {[%clk 0:01:26.4]} 17... f5 {[%clk 0:02:16.6]}
18. Nd5 {[%clk 0:01:24.3]} 18... Bxb2 {[%clk 0:02:12.2]} 19. Rxb2 {[%clk
0:01:25.2]} 19... Bxd5 {[%clk 0:02:12]} 20. cxd5 {[%clk 0:01:25.5]} 20... c5
{[%clk 0:02:07.8]} 21. dxc6 {[%clk 0:01:24.7]} 21... bxc6 {[%clk 0:02:07.1]} 22.
Rd1 {[%clk 0:01:24.8]} 22... d5 {[%clk 0:02:06.2]} 23. Rc2 {[%clk 0:01:25.1]}
23... Re6 {[%clk 0:02:05.8]} 24. Rdc1 {[%clk 0:01:23.9]} 24... Rc8 {[%clk
0:02:00.7]} 25. Rc5 {[%clk 0:01:24.2]} 25... Kf7 {[%clk 0:01:46.2]} 26. Rxd5
{[%clk 0:01:21.2]} 26... Rce8 {[%clk 0:01:41.9]} 27. Rd3 {[%clk 0:01:16.9]}
27... Rb8 {[%clk 0:01:34.8]} 28. Rc4 {[%clk 0:01:08.8]} 28... Rb7 {[%clk
0:01:30.5]} 29. Rdc3 {[%clk 0:01:08]} 29... Rd7 {[%clk 0:01:27.8]} 30. Rc2
{[%clk 0:01:06.5]} 30... Rdd6 {[%clk 0:01:26.5]} 31. e4 {[%clk 0:01:02.9]} 31...
fxe4 {[%clk 0:01:25.4]} 32. Rxe4 {[%clk 0:01:03.8]} 32... Rxe4 {[%clk
0:01:19.5]} 33. fxe4 {[%clk 0:01:04.7]} 33... Ke6 {[%clk 0:01:18.8]} 34. Ke3
{[%clk 0:01:05.3]} 34... Kd7 {[%clk 0:01:00.9]} 35. Rc5 {[%clk 0:01:04.8]} 35...
Rd1 {[%clk 0:00:59.7]} 36. Ra5 {[%clk 0:01:04.9]} 36... Rg1 {[%clk 0:00:59.3]}
37. Rxa6 {[%clk 0:01:04.9]} 37... Rxg2 {[%clk 0:00:59.2]} 38. Ra7+ {[%clk
0:00:56.7]} 38... Kd6 {[%clk 0:00:59.1]} 39. Rxh7 {[%clk 0:00:57.4]} 39... Rxa2
{[%clk 0:00:58.7]} 40. Rh6 {[%clk 0:00:57]} 40... Rg2 {[%clk 0:00:55.6]} 41. h4
{[%clk 0:00:54.5]} 41... Ke5 {[%clk 0:00:53.2]} 42. Kf3 {[%clk 0:00:43.8]} 42...
Rb2 {[%clk 0:00:48.9]} 43. Rxg6 {[%clk 0:00:44.1]} 43... Rxb3+ {[%clk
0:00:48.9]} 44. Kg4 {[%clk 0:00:44.5]} 44... Rc3 {[%clk 0:00:44.2]} 45. Rg5+
{[%clk 0:00:38.5]} 45... Kxe4 {[%clk 0:00:43.9]} 46. h5 {[%clk 0:00:39.4]} 46...
Ra3 {[%clk 0:00:37.4]} 47. h6 {[%clk 0:00:39.2]} 47... Ra8 {[%clk 0:00:36.8]}
48. Kh5 {[%clk 0:00:27.9]} 48... Kd4 {[%clk 0:00:35.2]} 49. h7 {[%clk 0:00:24]}
49... Rh8 {[%clk 0:00:30.6]} 50. Kh6 {[%clk 0:00:24.4]} 50... c5 {[%clk
0:00:30.6]} 51. Rg8 {[%clk 0:00:23.2]} 51... Rxh7+ {[%clk 0:00:29.6]} 52. Kxh7
{[%clk 0:00:24.1]} 52... c4 {[%clk 0:00:29.5]} 53. Kg6 {[%clk 0:00:22.8]} 53...
c3 {[%clk 0:00:29.4]} 54. Kf5 {[%clk 0:00:22.8]} 54... c2 {[%clk 0:00:29.1]} 55.
Rc8 {[%clk 0:00:12.3]} 55... Kd3 {[%clk 0:00:29.1]} 56. Kf4 {[%clk 0:00:12.5]}
56... Kd2 {[%clk 0:00:29.3]} 57. Rd8+ {[%clk 0:00:12.7]} 57... Ke2 {[%clk
0:00:29]} 58. Re8+ {[%clk 0:00:12.5]} 58... Kd2 {[%clk 0:00:28.9]} 59. Rd8+
{[%clk 0:00:10.2]} 59... Ke2 {[%clk 0:00:28.8]} 60. Rc8 {[%clk 0:00:09]} 60...
Kd2 {[%clk 0:00:28.7]} 61. Rxc2+ {[%clk 0:00:06.8]} 61... Kxc2 {[%clk
0:00:28.4]} 1/2-1/2

[Event "Late-Titled-Tuesday-Blitz-February-20-2024"]
[Site "Chess.com"]
[Date "2024.02.20"]
[Round "10"]
[White "kylelancman"]
[Black "Ready4abattle"]
[Result "1-0"]
[WhiteElo "2442"]
[BlackElo "2274"]
[TimeControl "180+1"]
[EndTime "15:55:32 PST"]
[Termination "kylelancman won by checkmate"]

1. e4 {[%clk 0:03:00.4]} 1... c5 {[%clk 0:03:00]} 2. Nf3 {[%clk 0:02:59.4]} 2...
Nc6 {[%clk 0:02:59.9]} 3. Bb5 {[%clk 0:02:58.5]} 3... e6 {[%clk 0:03:00.1]} 4.
O-O {[%clk 0:02:55.6]} 4... Nge7 {[%clk 0:03:00.5]} 5. b3 {[%clk 0:02:54.9]}
5... f6 {[%clk 0:02:56]} 6. Bb2 {[%clk 0:02:52.3]} 6... e5 {[%clk 0:02:56]} 7.
Re1 {[%clk 0:02:39]} 7... d6 {[%clk 0:02:55.4]} 8. Bc4 {[%clk 0:02:38.6]} 8...
Ng6 {[%clk 0:02:48.4]} 9. c3 {[%clk 0:02:34.3]} 9... Nf4 {[%clk 0:02:30.2]} 10.
d4 {[%clk 0:02:29.8]} 10... cxd4 {[%clk 0:02:31.1]} 11. cxd4 {[%clk 0:02:29.1]}
11... Bg4 {[%clk 0:02:22.1]} 12. h3 {[%clk 0:01:59.5]} 12... Bh5 {[%clk
0:02:20]} 13. d5 {[%clk 0:01:56.1]} 13... Ne7 {[%clk 0:02:14.4]} 14. Bb5+ {[%clk
0:01:45.1]} 14... Kf7 {[%clk 0:02:14.3]} 15. Bc1 {[%clk 0:01:36.8]} 15... g5
{[%clk 0:02:11.8]} 16. Bxf4 {[%clk 0:01:33.7]} 16... Bxf3 {[%clk 0:02:02.6]} 17.
Qxf3 {[%clk 0:01:32.1]} 17... exf4 {[%clk 0:02:00.4]} 18. Nc3 {[%clk 0:01:26.4]}
18... Ng6 {[%clk 0:02:00]} 19. Rac1 {[%clk 0:01:22.7]} 19... h5 {[%clk
0:01:58.4]} 20. Ne2 {[%clk 0:01:15.6]} 20... Ne5 {[%clk 0:01:52]} 21. Qc3 {[%clk
0:01:14.1]} 21... Be7 {[%clk 0:01:46.2]} 22. Nd4 {[%clk 0:01:09.9]} 22... Qb6
{[%clk 0:01:35.8]} 23. a4 {[%clk 0:01:01.7]} 23... a6 {[%clk 0:01:33.8]} 24. Be2
{[%clk 0:00:58.4]} 24... Kg6 {[%clk 0:01:23.2]} 25. a5 {[%clk 0:00:55]} 25...
Qa7 {[%clk 0:01:17.7]} 26. Nf5 {[%clk 0:00:46.2]} 26... Rh7 {[%clk 0:01:10.7]}
27. Qc7 {[%clk 0:00:33.3]} 27... Bf8 {[%clk 0:01:02.4]} 28. Qb6 {[%clk
0:00:22.9]} 28... Qxb6 {[%clk 0:00:56]} 29. axb6 {[%clk 0:00:23.8]} 29... g4
{[%clk 0:00:51.5]} 30. f3 {[%clk 0:00:22.1]} 30... g3 {[%clk 0:00:48.5]} 31. Rc3
{[%clk 0:00:20.7]} 31... Rd7 {[%clk 0:00:42]} 32. Rec1 {[%clk 0:00:19.8]} 32...
Be7 {[%clk 0:00:36.5]} 33. Rc7 {[%clk 0:00:19.4]} 33... Bd8 {[%clk 0:00:33.7]}
34. Rxd7 {[%clk 0:00:15.1]} 34... Bxb6+ {[%clk 0:00:34.1]} 35. Kf1 {[%clk
0:00:14.3]} 35... Nxd7 {[%clk 0:00:34.7]} 36. Nxd6 {[%clk 0:00:14.7]} 36... Be3
{[%clk 0:00:32.7]} 37. Rc7 {[%clk 0:00:13.4]} 37... Ne5 {[%clk 0:00:27.2]} 38.
Nf5 {[%clk 0:00:12.9]} 38... Nf7 {[%clk 0:00:20.3]} 39. Rxb7 {[%clk 0:00:11.8]}
39... Rc8 {[%clk 0:00:19.3]} 40. Bc4 {[%clk 0:00:12.4]} 40... Rc5 {[%clk
0:00:17.5]} 41. d6 {[%clk 0:00:12.3]} 41... Ra5 {[%clk 0:00:16.9]} 42. Bxf7+
{[%clk 0:00:11.5]} 42... Kh7 {[%clk 0:00:11.7]} 43. Bxh5+ {[%clk 0:00:10]} 43...
Kg8 {[%clk 0:00:12.2]} 44. Rb8+ {[%clk 0:00:08.8]} 44... Kh7 {[%clk 0:00:12.1]}
45. Ke2 {[%clk 0:00:08.6]} 45... Ra2+ {[%clk 0:00:11.8]} 46. Kd3 {[%clk
0:00:09.2]} 46... Rxg2 {[%clk 0:00:11.9]} 47. d7 {[%clk 0:00:08.1]} 47... Rd2+
{[%clk 0:00:12.2]} 48. Kc4 {[%clk 0:00:08.3]} 48... Rxd7 {[%clk 0:00:12.7]} 49.
Nh4 {[%clk 0:00:04.9]} 49... Rc7+ {[%clk 0:00:12.7]} 50. Kd5 {[%clk 0:00:03]}
50... Kh6 {[%clk 0:00:11.4]} 51. Bg6 {[%clk 0:00:01.9]} 51... Kg5 {[%clk
0:00:11]} 52. Rh8 {[%clk 0:00:01.3]} 52... g2 {[%clk 0:00:09.8]} 53. Rh5# {[%clk
0:00:01.2]} 1-0